Cogmind - Beta 17 @@@ ROGUE MODE // 2026.08.15 @ 21:46:13 Player: Mingebag Result: Destroyed by as-87893 with Assembled Rifle Performance ------------- Evolutions (0) 0 Regions Visited (2) 400 Robots Destroyed (14) 70 Value Destroyed (279) 279 Prototype IDs (0) 0 Alien Tech Used (0) 0 Bonus (14) 14 TOTAL SCORE: 763 Bonus ------- Follower Combat Kills 14 Cogmind --------- Core Integrity 0/250 Matter 282/300 Energy 100/100 System Corruption 1% Temperature Cool (0) Movement Walking (190) Ox1 Location -10/Mines Parts ------- > --- POWER (1) -------- (None) > --- PROPULSION (2) --- Improved Aluminum Leg Improved Aluminum Leg > --- UTILITY (2) ------ High-capacity Storage Unit Targeting Computer > --- WEAPON (2) ------- Assault Rifle > --- INVENTORY (20) --- Ion Engine Light Ion Engine Light Ion Engine Light Ion Engine Improved Aluminum Leg Improved Aluminum Leg Large Storage Unit Large Storage Unit Large Matter Pod (150) Structural Scanner Signal Interpreter ECM Suite Propulsion Shielding Hacking Suite Medium Laser Light Assault Rifle Mining Laser Mining Claw Peak State ------------ > --- POWER ------------ Ion Engine > --- PROPULSION ------- Improved Aluminum Leg Improved Aluminum Leg > --- UTILITY ---------- High-capacity Storage Unit Targeting Computer > --- WEAPON ----------- Assault Rifle > --- INVENTORY -------- Ion Engine Light Ion Engine Light Ion Engine Light Ion Engine Improved Aluminum Leg Improved Aluminum Leg Large Storage Unit Large Storage Unit Large Matter Pod Structural Scanner Signal Interpreter ECM Suite Propulsion Shielding Hacking Suite Medium Laser Light Assault Rifle Mining Laser Mining Claw [Rating: 10] Favorites ----------- Power Ion Engine Engine Ion Engine Propulsion Light Treads Treads Light Treads Leg Improved Aluminum Leg Utility Targeting Computer Storage High-capacity Storage Unit Processor Targeting Computer Weapon Medium Laser Energy Gun Medium Laser Ballistic Gun Assault Rifle Build | -11 -10 -10 ------- Run | Yrd Mat Min Slots Evolved . | . . . Power . | . . . Propulsion . | . . . Utility . | . . . Weapon . | . . . Parts Attached 13 | 7 4 2 Power 2 | 1 1 . Engine 2 | 1 1 . Core . | . . . Reactor . | . . . Propulsion 4 | 2 . 2 Treads 2 | 2 . . Leg 2 | . . 2 Wheel . | . . . Hover . | . . . Flight . | . . . Utility 4 | 1 3 . Device . | . . . Storage 3 | 1 2 . Processor 1 | . 1 . Hackware . | . . . Protection . | . . . Artifact . | . . . Weapon 3 | 3 . . Energy Gun 2 | 2 . . Energy Cannon . | . . . Ballistic Gun 1 | 1 . . Ballistic Cannon . | . . . Launcher . | . . . Special Weapon . | . . . Impact Weapon . | . . . Slashing Weapon . | . . . Piercing Weapon . | . . . Special Melee Weapon . | . . . Unidentified Prototypes . | . . . Parts Lost 5 | . 1 4 Power 2 | . 1 1 Propulsion 2 | . . 2 Utility . | . . . Weapon 1 | . . 1 Highest Loss Streak 4 | . 1 4 To Critical Strikes . | . . . Average Backups 15 | 2 15 19 Power 3 | . 3 4 Propulsion 3 | 1 3 3 Utility 5 | . 5 8 Weapon 3 | . 2 4 Tool/Special . | . . . Unused Backups 20 | . 3 17 Power 4 | . . 4 Propulsion 5 | . 3 2 Utility 7 | . . 7 Weapon 4 | . . 4 Tool/Special . | . . . Average Slot Usage (%) 96 | . 96 98 Engine 14 | . 14 14 Treads 27 | . 28 26 Storage 14 | . 14 14 Processor 11 | . 10 14 Energy Gun 13 | . 14 13 Ballistic Gun 14 | . 14 14 Peak Build Rating 10 | 6 9 10 Average Rating 8 | 5 8 8 On Entrance 5 | . 6 9 Avg Prop Armor Cover (%) . | . . . Naked Turns . | . . . Heaviest Build 49 | 12 49 49 Greatest Support 40 | 40 40 40 Greatest Overweight (x) 2 | . 1 2 Average Overweight (x) . | . . 1 Largest Inventory Capacity 20 | 8 20 20 Average Capacity 16 | 7 16 20 Most Carried 20 | 4 20 20 Average Carried 15 | 2 15 19 Final Capacity 20 | 8 20 20 Final Carried 20 | 4 20 18 Class Distribution -------------------- 100% | Mutant Dominant Class ---------------- Mutant | -10/Materials Mutant | -10/Mines Resources | -11 -10 -10 ----------- Run | Yrd Mat Min Matter Collected 562 | 153 409 . Remotely . | . . . Salvage Created 375 | . 348 27 Parts 23 | . 21 2 Haulers Intercepted 1 | . 1 . Recyclers Shooed . | . . . Parts Field Recycled . | . . . Retrieved Matter . | . . . Parts Self-Destructed . | . . . Prevented . | . . . Parts Restored . | . . . Kills | -11 -10 -10 ------- Run | Yrd Mat Min Combat Hostiles Destroyed 12 | . 11 1 Guns 12 | . 11 1 Classes Destroyed 6 | . 4 2 Builder 1 | . . 1 Hauler 1 | . 1 . Operator 1 | . 1 . Swarmer 6 | . 6 . Grunt 5 | . 5 . Assembled 1 | . . 1 Best Kill Streak 3 | . 3 2 Combat Bots Only 3 | . 3 1 Max Kills in Single Turn 1 | . 1 1 Gunslinging . | . . . Exploded . | . . . Melee . | . . . Uniques/NPCs Destroyed . | . . . Combat | -11 -10 -10 -------- Run | Yrd Mat Min Hostile Shots Fired 91 | . 60 31 Missed 25 | . 18 7 Hits 66 | . 42 24 Melee 3 | . . 3 Projectile 63 | . 42 21 Critical Strikes 2 | . 1 1 Damage Taken 795 | . 429 366 Core 250 | . 88 162 Absorbed by Shields . | . . . Core Remaining (%) 100 | 100 . . Volleys Fired 38 | . 34 4 Largest 2 | . 2 2 Hottest 70 | . 70 70 Shots Fired 77 | . 69 8 Gun 77 | . 69 8 Cannon . | . . . Launcher . | . . . Special . | . . . Kinetic 38 | . 34 4 Thermal 39 | . 35 4 Explosive . | . . . Electromagnetic . | . . . Robot Hit Streak 9 | . 9 4 Robot Miss Streak 2 | . 2 1 Penetration Max . | . . . Secondary Targets 2 | . 2 . Max Gunslinging Chain 1 | . 1 . Shots Hit Robots 52 | . 47 5 Core Hits 25 | . 22 3 Critical Kills . | . . . Critical Parts Destroyed . | . . . Critical Strikes 3 | . 3 . Burn 3 | . 3 . Melee Attacks . | . . . Impact . | . . . Slashing . | . . . Piercing . | . . . Sneak Attacks . | . . . Combat Hostiles . | . . . Follow-up Attacks . | . . . Damage Inflicted 666 | . 588 78 Guns 663 | . 585 78 Cannons . | . . . Explosions . | . . . Melee . | . . . Ramming 3 | . 3 . Kinetic 363 | . 310 53 Thermal 300 | . 275 25 Explosive . | . . . Electromagnetic . | . . . Impact . | . . . Slashing . | . . . Piercing . | . . . Highest Corruption 1 | . 1 1 Average Corruption 1 | . 1 1 Corruption Purged . | . . . Corruption Blocked . | . . . Effects 3 | . 2 1 Matter Fused 1 | . . 1 Energy Discharges 1 | . 1 . Misfires 1 | . 1 . Overload Shots . | . . . Overflow Damage . | . . . Projectiles . | . . . Explosions . | . . . Melee . | . . . Knockbacks . | . . . Impact . | . . . Kinetic . | . . . Secondary . | . . . Self-Inflicted Damage . | . . . Shots . | . . . Rammed 1 | . 1 . Targets Rammed 1 | . 1 . Kicked . | . . . Crushed . | . . . Highest Temperature 81 | . 81 67 Average Temperature 23 | . 22 28 Received Heat Transfer 235 | . 135 100 Siege Activations . | . . . Martial Activations . | . . . Shielding Activations . | . . . Robots Disrupted . | . . . Combat Hostiles . | . . . Robots Corrupted . | . . . Combat Hostiles . | . . . Parts Fried . | . . . Impact Corruptions . | . . . Robots Melted . | . . . Combat Hostiles . | . . . Parts Melted 1 | . 1 . Heat Transferred 1110 | . 1036 74 Parts Sabotaged . | . . . Parts Stolen . | . . . Parts Stripped . | . . . Power Chain Reactions . | . . . Alert | -11 -10 -10 ------- Run | Yrd Mat Min Maximum Alert Level . | . . . Low Security (%) 100 | 100 100 100 Level 1 . | . . . Level 2 . | . . . Level 3 . | . . . Level 4 . | . . . Level 5 . | . . . High Security . | . . . Max Security . | . . . Peak Influence 62 | . 62 56 Initial . | . . . Average 10 | . 10 8 Influence Increases 354 | . 293 61 Destroy 0b10 Robot/C 260 | . 220 40 Destroy 0b10 Robot/NC 15 | . 10 5 Destroy Leader 62 | . 52 10 Allied During Kill 6 | . . 6 Successful Hack 10 | . 10 . Destroy Structure 1 | . 1 . Influence Decreases 354 | . 293 61 Time Decay 313 | . 293 20 Lost Part 5 | . . 5 Lost Ally 36 | . . 36 Squads Dispatched 1 | . 1 . Investigation . | . . . Extermination . | . . . Reinforcement 1 | . 1 . Assault . | . . . Garrison . | . . . Intercept . | . . . Searches Triggered . | . . . Construction Impeded . | . . . Haulers Reinforced . | . . . Active Scanning Responses . | . . . Cargo Convoy Interrupts . | . . . Stealth | -11 -10 -10 --------- Run | Yrd Mat Min Distress Signals . | . . . Communications Jammed . | . . . Distress Signals . | . . . Times Spotted 34 | . 28 6 Peak Tracking Total 6 | . 4 6 Tactical Retreats . | . . . Traps | -11 -10 -10 ------- Run | Yrd Mat Min Traps Triggered 2 | . 2 . Indirectly . | . . . Trap Hack Attempts . | . . . Triggered . | . . . Disarmed . | . . . Reprogrammed . | . . . Reused . | . . . Traps Extracted . | . . . Installed . | . . . Triggered . | . . . Machines | -11 -10 -10 ---------- Run | Yrd Mat Min Machines Disabled . | . . . Max in Single Turn . | . . . Machines Repaired . | . . . Machines Dismantled . | . . . Machines Sabotaged . | . . . Overloaded Fab Kills . | . . . Hacking | -11 -10 -10 --------- Run | Yrd Mat Min Machines Accessed 4 | . 4 . Terminals 4 | . 4 . Fabricators . | . . . Repair Stations . | . . . Recycling Units . | . . . Scanalyzers . | . . . Garrison Access . | . . . Total Hacks 10 | . 10 . Successful 4 | . 4 . Failed 6 | . 6 . Catastrophic 4 | . 4 . Database Lockouts . | . . . Manual 4 | . 4 . Terminals 10 | . 10 . Fabricators . | . . . Repair Stations . | . . . Recycling Units . | . . . Scanalyzers . | . . . Garrison Access . | . . . Terminal Hacks 3 | . 3 . Locate Traps 1 | . 1 . Transport Status 1 | . 1 . Hauler Manifests 1 | . 1 . Fabricator Hacks . | . . . Repair Station Hacks . | . . . Recycling Unit Hacks . | . . . Scanalyzer . | . . . Garrison Access Hacks . | . . . Unauthorized Hacks 1 | . 1 . Terminals 1 | . 1 . Operators 1 | . 1 . Fabricators . | . . . Repair Stations . | . . . Recycling Units . | . . . Scanalyzers . | . . . Garrison Access . | . . . Data Cores Recovered . | . . . Used . | . . . Hacking Detections 3 | . 3 . Full Trace Events . | . . . Feedback Events . | . . . Feedback Blocked . | . . . Robot Schematics Acquired . | . . . Robots Built . | . . . Authchips . | . . . Time . | . . . Total Robot Build Rating . | . . . Part Schematics Acquired . | . . . Parts Built . | . . . Authchips . | . . . Time . | . . . Total Part Build Rating . | . . . Part Studies Acquired . | . . . Parts Repaired . | . . . Time . | . . . Parts Recycled . | . . . Recycled Matter . | . . . Retrieved Matter . | . . . Retrieved Components . | . . . Parts Scanalyzed . | . . . Part Schematics Acquired . | . . . Parts Damaged . | . . . Bothacking | -11 -10 -10 ------------ Run | Yrd Mat Min Used RIF Installer . | . . . Robots Hacked . | . . . Non-combat . | . . . Combat . | . . . Robot Hacks Applied . | . . . Relay Couplers Released . | . . . Fabnet Peak Effective % . | . . . Robots Rewired . | . . . Allies Hacked . | . . . Hacks Repelled . | . . . Allies | -11 -10 -10 -------- Run | Yrd Mat Min Total Allies 2 | . . 2 Largest Group 2 | . . 2 Highest-Rated Group 50 | . . 50 Highest-Rated Ally 31 | . . 31 Total Orders . | . . . Ally Attacks 8 | . . 8 Total Damage 64 | . . 64 Kills 2 | . . 2 Allies Corrupted . | . . . Allies Melted . | . . . Intel | -11 -10 -10 ------- Run | Yrd Mat Min Active Infowar (turns) . | . . . Robot Analysis Total . | . . . Derelict Logs Recovered 1 | . . 1 Drone Launches . | . . . Drone Recoveries . | . . . Exploration | -11 -10 -10 ------------- Run | Yrd Mat Min Turns Passed 1935 | 71 1631 233 Spaces Moved 869 | 39 739 91 Core 4 | 4 . . Treads 863 | 35 739 89 Legs 2 | . . 2 Wheels . | . . . Hover . | . . . Flight . | . . . Fastest Speed 50 | 50 160 190 Average Speed 198 | 148 195 239 Slowest Speed 320 | 160 240 320 Overloaded Moves . | . . . Propulsion Burnouts . | . . . Robots Hopped . | . . . Potential Cave-ins . | . . . Cave-ins Triggered . | . . . Exploration Rate (%) 41 | 3 96 25 Regions Visited 2 Branch Regions 1 Pre-discovered Areas . | . . . Known Exits Taken . | . . . Unknown Exits Taken 2 | 1 1 . Scrap Searched 1 | . . 1 Spaces Dug . | . . . Terrain Destroyed . | . . . Melee . | . . . Projectile . | . . . AOE . | . . . Terrain Rammed . | . . . Walls Destroyed . | . . . Machines Disabled . | . . . Actions | -11 -10 -10 --------- Run | Yrd Mat Min Total 1006 | 49 859 98 Wait 53 | . 52 1 Move 867 | 38 738 91 Hop . | . . . Pick Up 27 | 4 23 . Fast Attach 7 | 6 1 . Attach 4 | . 2 2 Detach . | . . . Swap 2 | 1 1 . Drop 7 | . 7 . Fire 38 | . 34 4 Melee . | . . . Ram . | . . . Kick . | . . . Crush 1 | . 1 . Escape Stasis . | . . . Rewire . | . . . Trap . | . . . Miscellaneous . | . . . Route ------- -11/Scrapyard -10/Materials (discovered 5 exits: [*Mat x3] / [*Min] / [*Sub]) -10/Mines (discovered 1 exit: [*Mat]) History --------- Turn | Location | Event 2 | -11/Scrapyard | Met Revision 17 20 | -11/Scrapyard | Discovered new exit (range 16) 72 | -11/Scrapyard | Entered Materials 195 | -10/Materials | Discovered new exit (range 13) 305 | -10/Materials | Build established: Mutant 581 | -10/Materials | Discovered new exit (range 16) 1102 | -10/Materials | Discovered new exit (range 15) 1511 | -10/Materials | Discovered new exit (range 16) 1667 | -10/Materials | Discovered new exit (range 8) 1703 | -10/Materials | Entered Mines 1800 | -10/Mines | Learned Materials emergency access door positions 1852 | -10/Mines | Assembled infested the area 1889 | -10/Mines | Discovered new exit (range 15) 1924 | -10/Mines | Core integrity fell below 50% 1931 | -10/Mines | Core integrity fell below 20% 1936 | -10/Mines | Destroyed by as-87893 with Assembled Rifle Last Messages --------------- 01908_ U-05 Engineer builds a Wall. 01911_ T-07 Excavator is excavating. 01913_ Destroyed Asb. Hover Unit. 01914_ R-06 Scavenger destroyed. 01915_ T-07 Excavator is excavating. 01919_ U-05 Engineer lays Concrete. 01920_ T-07 Excavator is excavating. 01921_ U-05 Engineer lays Concrete. 01921_ as-72874 destroyed. 01921_ Lgt. Treads destroyed. 01922_ as-55251 destroyed. 01924_ T-07 Excavator is excavating. 01924_ K-01 Serf destroyed. 01924_ U-05 Engineer lays Concrete. 01925_ U-05 Engineer destroyed. 01928_ T-07 Excavator is excavating. 01929_ Lgt. Treads destroyed. 01929_ Med. Laser destroyed. 01932_ T-07 Excavator is excavating. 01935_ Ion Engine destroyed. Map ----- +----------------------------------------------------+ | | | | | | | | | | | ?????????????????????????????????????????????????? | | ????????????????????????????????????????####?????? | | ???????????????????????????????????????## ##????? | | ??????????????????????????????????????## ##??## | | ??????????????????????????????????????# #??# | | ??????????????????????????????????????# #??# | | ????????????????????????????## ????????# #### | | ???????????????????????????# ????????# | | ??????????????????????????# %= ????????# ##### | | ??????????????????????????? | #????????## ##???# | | ???????????????????????????# #?????????####????# | | ???????????????????????????# #?????????????????# | | ?????????????????????????### #???????############ | | ?????????????????#########* ##??????# #?? | | ?????????????????? %= ##?????# """ #?? | | ??????????????????? < #####?# """ #?? | | ????????????????????# a ### """= #?? | | ????????????????????# """ a % !=%* ### | | ?????????????????????# """ % aa *==%*= # | | ????????????????????## """ ### =[ # # | | ????????????????????# @ ## ##?#### ##### # | | ???????????????????# ########?????# ##### # | | ???????????????????# ##????????????# | | ???????????????????# ####?############# ####### | | ???????????????????#####????# #?????# | | ????????????????????????????# #### ####### #?????? | | ?????????????????????????????????????????# #????? | | ????????????????????????????????????????? ???? | | ?????????????????????????????????????????# ??? | | ?????????????????????????????????????????## ?? | | ???????????????????????????????????????????# ? | | ????????????????????????????????????????????# | | ????????????????????????????????????????????? | | ????????????????????????????????????????????? | | ?????????????????????????????????????????????? | | ?????????????????????????????????????????????? | | ?????????????????????????????????????????????? | | ???????????????????????????????????????????????##? | | ?????????????????????????????????????????????????? | | ?????????????????????????????????????????????????? | | ?????????????????????????????????????????????????? | | ?????????????????????????????????????????????????? | | ?????????????????????????????????????????????????? | | ?????????????????????????????????????????????????? | | ?????????????????????????????????????????????????? | +----------------------------------------------------+ Best States ------------- Heat Dissipation 25 Energy Generation 10 Energy Capacity 250 Matter Stores 300 Matter Capacity 300 Sight Range 16 Terrain Scan Density 10 Evasion (%) 40 Targeting Accuracy 5 Recoil Reduction 2 Item Schematics ----------------- None Robot Schematics ------------------ None Fabricated ------------ Nothing Repaired ---------- Nothing Studied --------- None Alien Tech Used ----------------- None Achievements -------------- None Challenges ------------ None Game ------ Seed PotentialImpactCompactor Manual? 0 Play Time 00:16:23 Cumulative 23.5 hours Start 2026.08.15 @ 21:31:27 End 2026.08.15 @ 21:46:13 Sessions 1 Manual Loads 0 Difficulty Rogue Special Mode None Game No. 20 Rogue 20 Adventurer 0 Explorer 0 Win Type - Total 0 Types 0/0/0/0/0/0/0/0/0/0 Lore% 11 Gallery% 16 Achievement% 17 Wizard Run 0 Options --------- Layout 1 ASCII 0 Keyboard 0 Movement Mouse Keybinds 0 Fullscreen 1 Font 24/Smallcaps Map View 50x35 Zoom Use 0% Tactical HUD 1 Map Filters NONE Filters NONE Steam 1 RUN: aa2b74ef-13fb-4faa-9d12-5cd4fb21a71a